[Event "11th Arad Open 2018"]
[Site "Arad"]
[Date "2018.08.12"]
[Round "9"]
[White "Vrencian, Lehel"]
[Black "Bogdan, Dan"]
[Result "0-1"]
[ECO "B31"]
[WhiteElo "2293"]
[BlackElo "2382"]
[Annotator "NA"]
[PlyCount "82"]
[EventDate "2018.08.05"]
[EventType "swiss"]
[EventCountry "ROU"]
[SourceTitle "playchess.com"]
[Source "ChessBase"]
[SourceQuality "1"]
[TimeControl "40/5400+30:1800+30"]

1. e4 {[%emt 0:06:00]} c5 {[%emt 0:00:00]} 2. Nf3 {[%emt 0:00:09]} Nc6 {[%emt 0:01:46]} 3. Bb5 {[%emt 0:00:13]} g6 {[%emt 0:01:43]} 4. O-O {[%emt 0:00:13]} Bg7 {[%emt 0:00:10]} 5. Re1 {[%emt 0:00:12]} e5 {[%emt 0:00:10]} 6. c3 {[%emt 0:01:20]} Nge7 {[%emt 0:00:30]} 7. d4 {[%emt 0:05:21]} cxd4 {[%emt 0:01:46]} 8. cxd4 {[%emt 0:00:06]} exd4 {[%emt 0:00:04]} 9. e5 {[%emt 0:04:38]} a6 {[%emt 0:05:48]} 10. Ba4 {[%emt 0:08:48]} O-O {[%emt 0:04:23]} 11. Bg5 {[%emt 0:01:51]} b5 {[%emt 0:03:38]} 12. Bb3 {[%emt 0:00:54]} h6 {[%emt 0:01:08]} 13. Bxe7 {[%emt 0:03:53]} Qxe7 {[%emt 0:01:47]} 14. Nxd4 {[%emt 0:20:15]} Nxd4 {[%emt 0:08:42]} 15. Qxd4 {[%emt 0:00:06]} d6 {[%emt 0:02:04]} 16. f4 {[%emt 0:04:01]} dxe5 {[%emt 0:03:44]} 17. fxe5 {[%emt 0:00:05]} Be6 {[%emt 0:03:52]} 18. Nc3 {[%emt 0:03:45]} Rad8 {[%emt 0:01:41]} 19. Qe3 {[%emt 0:10:00]} Rfe8 {[%emt 0:02:04]} 20. Re2 {[%emt 0:05:29]} b4 {[%emt 0:09:38]} 21. Ne4 {[%emt 0:04:22]} Bxb3 {[%emt 0:01:20]} 22. Qxb3 {[%emt 0:00:41]} Bxe5 {[%emt 0:01:34]} 23. Rae1 {[%emt 0:01:26]} Bd4+ {[%emt 0:04:28]} 24. Kh1 {[%emt 0:00:17]} Kg7 {[%emt 0:00:51]} 25. Nd6 {[%emt 0:03:56]} Qxd6 {[%emt 0:04:41]} 26. Rxe8 {[%emt 0:00:13]} Rxe8 {[%emt 0:00:06]} 27. Rxe8 {[%emt 0:00:09]} Qf6 {[%emt 0:00:16]} 28. Qf3 {[%emt 0:11:11]} Qg5 {[%emt 0:00:36]} 29. Re1 {[%emt 0:01:44]} Bxb2 {[%emt 0:00:40]} 30. Rf1 {[%emt 0:00:31]} Bf6 {[%emt 0:00:21]} 31. Qc6 {[%emt 0:02:32]} a5 {[%emt 0:00:25]} 32. h3 {[%emt 0:00:24]} h5 {[%emt 0:00:58]} 33. Qc4 {[%emt 0:01:06]} Qg3 {[%emt 0:01:50]} 34. Qa6 {[%emt 0:00:34]} Be5 {[%emt 0:00:09]} 35. Kg1 {[%emt 0:00:17]} Qh2+ {[%emt 0:00:56]} 36. Kf2 {[%emt 0:00:01]} Bd4+ {[%emt 0:00:13]} 37. Kf3 {[%emt 0:00:14]} h4 {[%emt 0:00:30]} 38. Qb7 {[%emt 0:00:44]} Qg3+ {[%emt 0:00:16]} 39. Ke4 {[%emt 0:01:17]} Qe5+ {[%emt 0:02:27]} 40. Kf3 {[%emt 0:00:00]} Qe3+ {[%emt 0:00:00]} 41. Kg4 {[%emt 0:15:39]} Qg3# 0-1

[Event "11th Arad Open 2018"]
[Site "Arad"]
[Date "2018.08.12"]
[Round "9"]
[White "Dinu, Dumitru-Daniel"]
[Black "Kristofori, Attila"]
[Result "1-0"]
[ECO "B21"]
[WhiteElo "2225"]
[BlackElo "2041"]
[Annotator "NA"]
[PlyCount "45"]
[EventDate "2018.08.05"]
[EventType "swiss"]
[EventCountry "ROU"]
[SourceTitle "playchess.com"]
[Source "ChessBase"]
[SourceQuality "1"]
[TimeControl "40/5400+30:1800+30"]

1. e4 c5 2. d4 cxd4 3. c3 Nc6 4. cxd4 d5 5. Nc3 e6 6. e5 Qb6 7. Nf3 Bd7 8. Be2 Nge7 9. Na4 Qc7 10. O-O Nf5 11. g4 Nh6 12. h3 Ng8 13. Be3 f6 14. Rc1 Qa5 15. a3 Nxe5 16. dxe5 Bxa4 17. Qd4 Bd7 18. b4 Qd8 19. Rc2 fxe5 20. Qxe5 Ne7 21. Bd3 Nc6 22. Qh5+ g6 23. Bxg6+ {Ne7 Be4+} 1-0

[Event "11th Arad Open 2018"]
[Site "Arad"]
[Date "2018.08.12"]
[Round "9"]
[White "Zubcu, Vlad-George"]
[Black "Trifan, Andrei Ioan"]
[Result "1/2-1/2"]
[ECO "D01"]
[WhiteElo "2202"]
[BlackElo "2308"]
[Annotator "NA"]
[PlyCount "47"]
[EventDate "2018.08.05"]
[EventType "swiss"]
[EventCountry "ROU"]
[SourceTitle "playchess.com"]
[Source "ChessBase"]
[SourceQuality "1"]
[TimeControl "40/5400+30:1800+30"]

1. d4 {[%emt 0:00:00]} Nf6 {[%emt 0:00:24]} 2. Nc3 {[%emt 0:00:05]} d5 {[%emt 0:01:27]} 3. Bg5 {[%emt 0:00:04]} a6 {[%emt 0:02:49]} 4. Bxf6 {[%emt 0:01:11]} gxf6 {[%emt 0:03:36]} 5. e4 {[%emt 0:00:11]} dxe4 {[%emt 0:01:55]} 6. Nxe4 {[%emt 0:00:07]} Qd5 {[%emt 0:02:19]} 7. Nc3 {[%emt 0:01:31]} Qd6 {[%emt 0:02:46]} 8. Nf3 {[%emt 0:04:23]} f5 {[%emt 0:06:33]} 9. Bd3 {[%emt 0:04:52]} Bg7 {[%emt 0:02:21]} 10. Ne2 {[%emt 0:01:30]} Nc6 {[%emt 0:05:10]} 11. c3 {[%emt 0:01:34]} e6 {[%emt 0:10:44]} 12. Qc2 {[%emt 0:02:10]} Bd7 {[%emt 0:02:03]} 13. O-O-O {[%emt 0:01:35]} O-O-O {[%emt 0:02:37]} 14. Kb1 {[%emt 0:01:08]} Ne7 {[%emt 0:03:15]} 15. Nd2 {[%emt 0:02:23]} Ng6 {[%emt 0:04:26]} 16. Nc4 {[%emt 0:03:37]} Qd5 {[%emt 0:10:32]} 17. Ne3 {[%emt 0:00:29]} Qd6 {[%emt 0:03:35]} 18. d5 {[%emt 0:01:45]} Qc5 {[%emt 0:04:30]} 19. b4 {[%emt 0:05:53]} Qe7 {[%emt 0:03:42]} 20. f4 {[%emt 0:00:17]} Bh6 {[%emt 0:03:15]} 21. g3 {[%emt 0:00:25]} Ne5 {[%emt 0:00:45]} 22. Nxf5 {[%emt 0:09:55]} exf5 {[%emt 0:00:34]} 23. fxe5 {[%emt 0:00:04]} Qxe5 {[%emt 0:01:09]} 24. Rhf1 {[%emt 0:00:38]} 1/2-1/2

[Event "11th Arad Open 2018"]
[Site "Arad"]
[Date "2018.08.12"]
[Round "9"]
[White "Kelly, Ladislau-Endre"]
[Black "Secheres, Adrian-Simion"]
[Result "0-1"]
[ECO "B23"]
[WhiteElo "2173"]
[BlackElo "2407"]
[Annotator "NA"]
[PlyCount "68"]
[EventDate "2018.08.05"]
[EventType "swiss"]
[EventCountry "ROU"]
[SourceTitle "playchess.com"]
[Source "ChessBase"]
[SourceQuality "1"]
[TimeControl "40/5400+30:1800+30"]

1. e4 {[%emt 0:00:00]} c5 {[%emt 0:00:00]} 2. Nc3 {[%emt 0:00:00]} e6 {[%emt 0:00:34]} 3. f4 {[%emt 0:00:06]} d5 {[%emt 0:00:21]} 4. Nf3 {[%emt 0:00:11]} dxe4 {[%emt 0:00:28]} 5. Nxe4 {[%emt 0:00:07]} Nc6 {[%emt 0:00:04]} 6. g3 {[%emt 0:02:25]} Be7 {[%emt 0:04:15]} 7. Bg2 {[%emt 0:00:12]} Nh6 {[%emt 0:02:07]} 8. O-O {[%emt 0:01:35]} Qc7 {[%emt 0:03:23]} 9. b3 {[%emt 0:00:39]} Bd7 {[%emt 0:04:40]} 10. Bb2 {[%emt 0:00:13]} f6 {[%emt 0:00:24]} 11. Qe2 {[%emt 0:03:51]} O-O {[%emt 0:02:05]} 12. Nf2 {[%emt 0:02:57]} Rae8 {[%emt 0:02:54]} 13. Nd3 {[%emt 0:16:02]} Bd6 {[%emt 0:03:10]} 14. Rae1 {[%emt 0:02:19]} b6 {[%emt 0:04:12]} 15. Qd1 {[%emt 0:09:11]} Nf7 {[%emt 0:08:24]} 16. Re3 {[%emt 0:13:49]} b5 {[%emt 0:05:19]} 17. Rfe1 {[%emt 0:07:35]} c4 {[%emt 0:03:01]} 18. Nf2 {[%emt 0:00:24]} Bc5 {[%emt 0:03:42]} 19. d4 {[%emt 0:01:22]} cxd3 {[%emt 0:02:04]} 20. Rxd3 {[%emt 0:00:11]} Qb6 {[%emt 0:03:41]} 21. Re2 {[%emt 0:01:59]} Bc8 {[%emt 0:01:17]} 22. a3 {[%emt 0:08:13]} e5 {[%emt 0:05:26]} 23. Rc3 {[%emt 0:16:10]} e4 {[%emt 0:08:08]} 24. Rxc5 {[%emt 0:02:20]} exf3 {[%emt 0:01:18]} 25. Rxe8 {[%emt 0:00:22]} Rxe8 {[%emt 0:00:11]} 26. Rxc6 {[%emt 0:02:25]} Qxc6 {[%emt 0:00:07]} 27. Bxf3 {[%emt 0:00:06]} Qc7 {[%emt 0:00:41]} 28. Bd5 {[%emt 0:04:24]} Bb7 {[%emt 0:03:36]} 29. c4 {[%emt 0:00:13]} Bxd5 {[%emt 0:00:59]} 30. cxd5 {[%emt 0:01:20]} Qd7 {[%emt 0:00:56]} 31. Qd4 {[%emt 0:01:14]} Rd8 {[%emt 0:00:44]} 32. Ne4 {[%emt 0:02:52]} Qxd5 {[%emt 0:00:46]} 33. Nxf6+ {[%emt 0:01:06]} gxf6 {[%emt 0:00:06]} 34. Qxf6 {[%emt 0:00:02]} Qd1+ {[%emt 0:00:15]} 0-1

[Event "11th Arad Open 2018"]
[Site "Arad"]
[Date "2018.08.12"]
[Round "9"]
[White "Rusan, Paul-Cristian"]
[Black "Abramovic, Bosko"]
[Result "1/2-1/2"]
[ECO "B75"]
[WhiteElo "2161"]
[BlackElo "2400"]
[Annotator "NA"]
[PlyCount "61"]
[EventDate "2018.08.05"]
[EventType "swiss"]
[EventCountry "ROU"]
[SourceTitle "playchess.com"]
[Source "ChessBase"]
[SourceQuality "1"]
[TimeControl "40/5400+30:1800+30"]

1. e4 {[%emt 0:00:00]} c5 {[%emt 0:00:00]} 2. Nf3 {[%emt 0:00:00]} d6 {[%emt 0:01:22]} 3. d4 {[%emt 0:00:07]} cxd4 {[%emt 0:00:07]} 4. Nxd4 {[%emt 0:00:04]} Nf6 {[%emt 0:00:05]} 5. Nc3 {[%emt 0:00:05]} g6 $14 {[%emt 0:00:32] LiveBook: 13967 Partien} 6. Be3 {[%emt 0:00:57]} Bg7 {[%emt 0:00:09]} 7. f3 {[%emt 0:00:11]} a6 {[%emt 0:01:01]} 8. Qd2 {[%emt 0:01:05]} h5 {[%emt 0:00:10]} 9. O-O-O {[%emt 0:00:32]} Nbd7 {[%emt 0:00:14]} 10. Bc4 {[%emt 0:03:51]} b5 {[%emt 0:00:19]} 11. Bd5 {[%emt 0:00:19]} Nxd5 {[%emt 0:00:15]} 12. exd5 {[%emt 0:00:20]} Bb7 {[%emt 0:00:18]} 13. a3 {[%emt 0:05:54]} Rc8 {[%emt 0:01:14]} 14. Rhe1 {[%emt 0:00:38]} Nf6 {[%emt 0:00:19]} 15. Bg5 {[%emt 0:00:32]} O-O {[%emt 0:00:12]} 16. Kb1 {[%emt 0:01:12]} Qd7 {[%emt 0:00:35]} 17. h3 {[%emt 0:02:07]} Rfe8 {[%emt 0:00:47]} 18. g4 {[%emt 0:00:45]} hxg4 {[%emt 0:05:45]} 19. hxg4 {[%emt 0:00:54]} Nxd5 {[%emt 0:00:04]} 20. Nxd5 {[%emt 0:00:24]} Bxd5 {[%emt 0:00:07]} 21. Rh1 {[%emt 0:11:21]} e6 {[%emt 0:13:25]} 22. Qh2 {[%emt 0:14:45]} Qc7 {[%emt 0:05:57]} 23. Qh4 {[%emt 0:10:04]} f6 {[%emt 0:02:29]} 24. Bxf6 {[%emt 0:00:40]} Bxf6 {[%emt 0:00:08]} 25. Qxf6 {[%emt 0:00:06]} Qg7 {[%emt 0:00:26]} 26. Qg5 {[%emt 0:02:26]} Kf7 {[%emt 0:00:10]} 27. Qf4+ {[%emt 0:04:40]} Ke7 {[%emt 0:00:14]} 28. Qg5+ {[%emt 0:02:10]} Kf7 {[%emt 0:00:09]} 29. Qf4+ {[%emt 0:00:23]} Ke7 {[%emt 0:00:15]} 30. Qg5+ {[%emt 0:00:06]} Kf7 {[%emt 0:00:06]} 31. Qf4+ 1/2-1/2

[Event "11th Arad Open 2018"]
[Site "Arad"]
[Date "2018.08.12"]
[Round "9"]
[White "Nicora, Cristi"]
[Black "Tiba, Vladyslav"]
[Result "0-1"]
[ECO "B42"]
[WhiteElo "2158"]
[BlackElo "2356"]
[Annotator "NA"]
[PlyCount "80"]
[EventDate "2018.08.05"]
[EventType "swiss"]
[EventCountry "ROU"]
[SourceTitle "playchess.com"]
[Source "ChessBase"]
[SourceQuality "1"]
[TimeControl "40/5400+30:1800+30"]

1. e4 {[%emt 0:00:00]} c5 {[%emt 0:00:01]} 2. Nf3 {[%emt 0:00:35]} e6 {[%emt 0:00:14]} 3. d4 {[%emt 0:00:11]} cxd4 {[%emt 0:00:09]} 4. Nxd4 {[%emt 0:00:07]} a6 {[%emt 0:00:10]} 5. Bd3 {[%emt 0:00:11]} Nf6 $14 {[%emt 0:00:30] LiveBook: 4298 Games} 6. O-O {[%emt 0:01:03]} Qc7 {[%emt 0:00:22]} 7. Nc3 {[%emt 0:01:23]} d6 {[%emt 0:00:43]} 8. a4 {[%emt 0:01:04]} Be7 {[%emt 0:01:04]} 9. Be3 {[%emt 0:00:57]} Nbd7 {[%emt 0:01:21]} 10. f4 {[%emt 0:00:14]} b6 {[%emt 0:04:29]} 11. Qf3 {[%emt 0:01:13]} Bb7 {[%emt 0:01:32]} 12. g4 {[%emt 0:01:33]} h6 {[%emt 0:33:35]} 13. g5 {[%emt 0:03:46]} hxg5 {[%emt 0:02:56]} 14. fxg5 {[%emt 0:00:06]} Ne5 {[%emt 0:00:09]} 15. Qg2 {[%emt 0:36:37]} Nfg4 {[%emt 0:01:51]} 16. Bf4 {[%emt 0:00:35]} Qc5 {[%emt 0:11:01]} 17. Nce2 {[%emt 0:00:39]} Bxg5 {[%emt 0:08:46]} 18. b4 {[%emt 0:19:15]} Bxf4 {[%emt 0:01:18]} 19. Rxf4 {[%emt 0:02:42]} Qxb4 {[%emt 0:02:27]} 20. Rxg4 {[%emt 0:02:10]} Nxg4 {[%emt 0:00:03]} 21. Qxg4 {[%emt 0:00:04]} O-O-O {[%emt 0:03:02]} 22. Qg3 {[%emt 0:07:53]} Qc5 {[%emt 0:02:51]} 23. Qf2 {[%emt 0:00:23]} e5 {[%emt 0:03:58]} 24. Nf3 {[%emt 0:02:24]} Qxf2+ {[%emt 0:02:08]} 25. Kxf2 {[%emt 0:00:02]} f5 {[%emt 0:00:08]} 26. Bc4 {[%emt 0:10:27]} fxe4 {[%emt 0:00:25]} 27. Be6+ {[%emt 0:01:21]} Kb8 {[%emt 0:00:18]} 28. Ng5 {[%emt 0:00:17]} Rxh2+ {[%emt 0:00:29]} 29. Ke3 {[%emt 0:00:01]} d5 {[%emt 0:05:47]} 30. c3 {[%emt 0:00:03]} Rg2 {[%emt 0:00:57]} 31. Nf7 {[%emt 0:00:39]} Re8 {[%emt 0:00:27]} 32. Bh3 {[%emt 0:01:32]} d4+ {[%emt 0:00:43]} 33. cxd4 {[%emt 0:01:22]} exd4+ {[%emt 0:00:05]} 34. Kd2 {[%emt 0:00:14]} e3+ {[%emt 0:02:11]} 35. Kd3 {[%emt 0:03:57]} Be4+ {[%emt 0:00:07]} 36. Kc4 {[%emt 0:00:29]} Rxe2 {[%emt 0:00:37]} 37. Nd6 {[%emt 0:00:03]} Rc2+ {[%emt 0:01:40]} 38. Kb3 {[%emt 0:00:04]} Rc3+ {[%emt 0:00:27]} 39. Kb4 {[%emt 0:01:20]} a5+ {[%emt 0:00:59]} 40. Kb5 {[%emt 0:00:00]} Ka7 {[%emt 0:00:00]} 0-1

[Event "11th Arad Open 2018"]
[Site "Arad"]
[Date "2018.08.12"]
[Round "9"]
[White "Ciorica, Mihai-Vlad"]
[Black "Florescu, Codrut-Constantin"]
[Result "1-0"]
[ECO "A53"]
[WhiteElo "2110"]
[BlackElo "2295"]
[Annotator "NA"]
[PlyCount "45"]
[EventDate "2018.08.05"]
[EventType "swiss"]
[EventCountry "ROU"]
[SourceTitle "playchess.com"]
[Source "ChessBase"]
[SourceQuality "1"]
[TimeControl "40/5400+30:1800+30"]

1. d4 {[%emt 0:00:00]} Nf6 {[%emt 0:11:31]} 2. c4 {[%emt 0:00:00]} d6 {[%emt 0:00:22]} 3. Nc3 {[%emt 0:00:13]} Nbd7 {[%emt 0:00:06]} 4. e4 {[%emt 0:00:25]} e5 {[%emt 0:00:07]} 5. d5 {[%emt 0:01:00]} Be7 {[%emt 0:00:07]} 6. f3 {[%emt 0:00:37]} O-O {[%emt 0:00:48]} 7. Be3 {[%emt 0:00:05]} c6 {[%emt 0:00:26]} 8. Qd2 {[%emt 0:02:11]} cxd5 {[%emt 0:00:12]} 9. cxd5 {[%emt 0:00:18]} Re8 {[%emt 0:00:08]} 10. Bd3 {[%emt 0:06:11]} Bf8 {[%emt 0:00:08]} 11. Nge2 {[%emt 0:00:17]} a6 {[%emt 0:00:08]} 12. a4 {[%emt 0:00:52]} g6 {[%emt 0:00:30]} 13. a5 {[%emt 0:02:27]} Bg7 {[%emt 0:00:12]} 14. Na4 {[%emt 0:01:06]} Rf8 {[%emt 0:00:17]} 15. Rc1 {[%emt 0:01:41]} Nh5 {[%emt 0:00:20]} 16. O-O {[%emt 0:09:21]} f5 {[%emt 0:00:14]} 17. Nb6 {[%emt 0:02:59]} Nxb6 {[%emt 0:00:08]} 18. Bxb6 {[%emt 0:00:07]} Qf6 {[%emt 0:00:14]} 19. Rc7 {[%emt 0:29:48]} f4 {[%emt 0:00:13]} 20. Rfc1 {[%emt 0:00:41]} g5 {[%emt 0:00:30]} 21. h3 {[%emt 0:04:35]} h6 {[%emt 0:00:07]} 22. R1c2 {[%emt 0:01:40]} Kh8 {[%emt 0:02:20]} 23. Qc1 1-0

[Event "11th Arad Open 2018"]
[Site "Arad"]
[Date "2018.08.12"]
[Round "9"]
[White "David, Bogdan-Emanuel"]
[Black "Cerbulenco, Liviu"]
[Result "1-0"]
[ECO "B06"]
[WhiteElo "2104"]
[BlackElo "2287"]
[Annotator "NA"]
[PlyCount "71"]
[EventDate "2018.08.05"]
[EventType "swiss"]
[EventCountry "ROU"]
[SourceTitle "playchess.com"]
[Source "ChessBase"]
[SourceQuality "1"]
[TimeControl "40/5400+30:1800+30"]

1. e4 {[%emt 0:01:04]} g6 {[%emt 0:00:00]} 2. d4 {[%emt 0:01:12]} Bg7 {[%emt 0:00:00]} 3. Nc3 {[%emt 0:00:31]} d6 {[%emt 0:00:00]} 4. Be3 {[%emt 0:00:58]} a6 {[%emt 0:00:00]} 5. a4 {[%emt 0:01:16]} b6 {[%emt 0:04:29]} 6. Bd3 {[%emt 0:06:06]} Bb7 {[%emt 0:01:49]} 7. Nce2 {[%emt 0:07:21]} Nd7 {[%emt 0:07:40]} 8. Ng3 {[%emt 0:02:44]} Ngf6 {[%emt 0:00:26]} 9. Nf3 {[%emt 0:06:46]} O-O {[%emt 0:06:52]} 10. O-O {[%emt 0:06:47]} e5 {[%emt 0:00:44]} 11. dxe5 {[%emt 0:01:22]} dxe5 {[%emt 0:01:58]} 12. h3 {[%emt 0:00:30]} Qe7 {[%emt 0:00:33]} 13. Qe2 {[%emt 0:05:39]} Nc5 {[%emt 0:01:00]} 14. Bd2 {[%emt 0:00:21]} a5 {[%emt 0:01:29]} 15. Bc3 {[%emt 0:01:24]} Nxd3 {[%emt 0:00:05]} 16. cxd3 {[%emt 0:00:10]} Nd7 {[%emt 0:00:07]} 17. Rfd1 {[%emt 0:00:54]} Rad8 {[%emt 0:07:56]} 18. d4 {[%emt 0:04:05]} exd4 {[%emt 0:02:00]} 19. Nxd4 {[%emt 0:00:25]} Nc5 {[%emt 0:00:28]} 20. Ndf5 {[%emt 0:04:16]} gxf5 {[%emt 0:05:46]} 21. Bxg7 {[%emt 0:12:32]} Rxd1+ {[%emt 0:10:37]} 22. Rxd1 {[%emt 0:00:08]} Re8 {[%emt 0:00:32]} 23. e5 {[%emt 0:03:46]} Qg5 {[%emt 0:04:57]} 24. Bf6 {[%emt 0:02:16]} Qg6 {[%emt 0:00:05]} 25. h4 {[%emt 0:03:31]} h6 {[%emt 0:08:03]} 26. Qd2 {[%emt 0:08:30]} Kh7 {[%emt 0:04:09]} 27. Qf4 {[%emt 0:04:44]} Rg8 {[%emt 0:04:34]} 28. Qc4 {[%emt 0:03:26]} Ne6 {[%emt 0:10:37]} 29. Rd7 {[%emt 0:00:47]} Re8 {[%emt 0:00:02]} 30. h5 {[%emt 0:01:36]} Qg4 {[%emt 0:00:54]} 31. Rxf7+ {[%emt 0:00:28]} Kg8 {[%emt 0:00:04]} 32. Rg7+ {[%emt 0:00:11]} Qxg7 {[%emt 0:00:25]} 33. Bxg7 {[%emt 0:00:05]} Kxg7 {[%emt 0:00:11]} 34. Nxf5+ {[%emt 0:00:08]} Kf8 {[%emt 0:01:56]} 35. Qh4 {[%emt 0:02:01]} Ng5 {[%emt 0:00:51]} 36. Nxh6 {[%emt 0:00:53]} 1-0

[Event "11th Arad Open 2018"]
[Site "Arad"]
[Date "2018.08.12"]
[Round "9"]
[White "Chima, Radu-Niculin"]
[Black "Pisu, Robert-Daniel"]
[Result "1/2-1/2"]
[ECO "B12"]
[WhiteElo "2094"]
[BlackElo "2282"]
[Annotator "NA"]
[PlyCount "33"]
[EventDate "2018.08.05"]
[EventType "swiss"]
[EventCountry "ROU"]
[SourceTitle "playchess.com"]
[Source "ChessBase"]
[SourceQuality "1"]
[TimeControl "40/5400+30:1800+30"]

1. e4 {[%emt 0:00:00]} c6 {[%emt 0:02:41]} 2. d4 {[%emt 0:02:39]} d5 {[%emt 0:00:28]} 3. Nd2 {[%emt 0:00:08]} g6 {[%emt 0:01:26]} 4. Ngf3 {[%emt 0:01:22]} Bg7 {[%emt 0:00:58]} 5. c3 {[%emt 0:00:26]} Nh6 {[%emt 0:04:42]} 6. Bd3 {[%emt 0:00:36]} O-O {[%emt 0:00:41]} 7. O-O {[%emt 0:00:38]} dxe4 {[%emt 0:04:33]} 8. Nxe4 {[%emt 0:00:44]} Nf5 {[%emt 0:01:03]} 9. Re1 {[%emt 0:05:09]} Nd7 {[%emt 0:08:24]} 10. Bf4 {[%emt 0:03:49]} Nf6 {[%emt 0:08:06]} 11. Be5 {[%emt 0:03:52]} Nxe4 {[%emt 0:00:59]} 12. Bxe4 {[%emt 0:00:32]} Nd6 {[%emt 0:05:14]} 13. Bxg7 {[%emt 0:00:42]} Kxg7 {[%emt 0:00:06]} 14. Bd3 {[%emt 0:02:58]} Bf5 {[%emt 0:07:54]} 15. Bxf5 {[%emt 0:01:11]} Nxf5 {[%emt 0:00:06]} 16. Qb3 {[%emt 0:01:05]} Qc7 17. d5 1/2-1/2

[Event "11th Arad Open 2018"]
[Site "Arad"]
[Date "2018.08.12"]
[Round "9"]
[White "Talu, Mircea"]
[Black "Cvetkovic, Srdjan"]
[Result "1/2-1/2"]
[ECO "D30"]
[WhiteElo "2092"]
[BlackElo "2252"]
[Annotator "NA"]
[PlyCount "28"]
[EventDate "2018.08.05"]
[EventType "swiss"]
[EventCountry "ROU"]
[SourceTitle "playchess.com"]
[Source "ChessBase"]
[SourceQuality "1"]
[TimeControl "40/5400+30:1800+30"]

1. d4 {[%emt 0:01:22]} Nf6 {[%emt 0:00:00]} 2. c4 {[%emt 0:00:12]} e6 {[%emt 0:00:25]} 3. Nf3 {[%emt 0:00:20]} d5 {[%emt 0:00:54]} 4. Bg5 {[%emt 0:00:27]} Be7 {[%emt 0:16:58]} 5. Nc3 {[%emt 0:03:00]} Nbd7 {[%emt 0:02:47]} 6. cxd5 {[%emt 0:00:31]} exd5 {[%emt 0:01:04]} 7. e3 {[%emt 0:00:20]} c6 {[%emt 0:01:37]} 8. Bd3 {[%emt 0:02:10]} Ne4 {[%emt 0:01:58]} 9. Bxe7 {[%emt 0:06:03]} Qxe7 {[%emt 0:00:28]} 10. O-O {[%emt 0:00:39]} Ndf6 {[%emt 0:03:48]} 11. Qc2 {[%emt 0:02:12]} Bf5 {[%emt 0:05:24]} 12. Nd2 {[%emt 0:03:19]} Nxd2 {[%emt 0:14:29]} 13. Qxd2 {[%emt 0:00:25]} Bxd3 {[%emt 0:00:10]} 14. Qxd3 {[%emt 0:00:06]} O-O 1/2-1/2

[Event "11th Arad Open 2018"]
[Site "Arad"]
[Date "2018.08.12"]
[Round "9"]
[White "Visanescu, Daria-Ioana"]
[Black "Geiger, Alex-Emanuel"]
[Result "1/2-1/2"]
[ECO "B22"]
[WhiteElo "2075"]
[BlackElo "2229"]
[Annotator "NA"]
[PlyCount "30"]
[EventDate "2018.08.05"]
[EventType "swiss"]
[EventCountry "ROU"]
[SourceTitle "playchess.com"]
[Source "ChessBase"]
[SourceQuality "1"]
[TimeControl "40/5400+30:1800+30"]

1. e4 {[%emt 0:00:00]} c5 {[%emt 0:00:36]} 2. c3 {[%emt 0:00:00]} d5 {[%emt 0:00:35]} 3. exd5 {[%emt 0:00:00]} Qxd5 {[%emt 0:00:07]} 4. d4 {[%emt 0:00:02]} e6 {[%emt 0:00:19] LiveBook: 1293 Games} 5. Nf3 $11 {[%emt 0:00:13]} Nf6 {[%emt 0:00:33]} 6. Be2 {[%emt 0:00:47]} Be7 {[%emt 0:04:24]} 7. Be3 {[%emt 0:01:21]} O-O {[%emt 0:05:54]} 8. O-O {[%emt 0:03:57]} Rd8 {[%emt 0:05:07]} 9. c4 {[%emt 0:11:36]} Qd7 {[%emt 0:04:04]} 10. Nc3 {[%emt 0:01:52]} cxd4 {[%emt 0:04:54]} 11. Qxd4 {[%emt 0:06:57]} Nc6 {[%emt 0:04:01]} 12. Qf4 {[%emt 0:01:51]} Nh5 {[%emt 0:06:46]} 13. Qg4 {[%emt 0:03:59]} Nf6 {[%emt 0:00:06]} 14. Qf4 {[%emt 0:10:16]} Nh5 {[%emt 0:00:06]} 15. Qg4 {[%emt 0:13:05]} Nf6 {[%emt 0:00:05]} 1/2-1/2

[Event "11th Arad Open 2018"]
[Site "Arad"]
[Date "2018.08.12"]
[Round "9"]
[White "Paraschiv, Paul-Alexandru"]
[Black "Stoleriu, George"]
[Result "0-1"]
[ECO "A46"]
[WhiteElo "2074"]
[BlackElo "2392"]
[Annotator "NA"]
[PlyCount "68"]
[EventDate "2018.08.05"]
[EventType "swiss"]
[EventCountry "ROU"]
[SourceTitle "playchess.com"]
[Source "ChessBase"]
[SourceQuality "1"]
[TimeControl "40/5400+30:1800+30"]

1. d4 {[%emt 0:02:30]} Nf6 {[%emt 0:00:00]} 2. Nf3 {[%emt 0:00:26]} e6 {[%emt 0:00:00]} 3. e3 {[%emt 0:03:45]} b6 {[%emt 0:01:37]} 4. Bd3 {[%emt 0:00:19]} Bb7 {[%emt 0:00:05]} 5. O-O {[%emt 0:00:09]} g6 {[%emt 0:02:34]} 6. c4 {[%emt 0:03:17]} Bg7 {[%emt 0:00:11]} 7. Nc3 {[%emt 0:00:16]} d6 {[%emt 0:00:51]} 8. e4 {[%emt 0:01:09]} O-O {[%emt 0:01:22]} 9. h3 {[%emt 0:01:50]} Nbd7 {[%emt 0:02:20]} 10. Re1 {[%emt 0:02:13]} e5 {[%emt 0:00:57]} 11. d5 {[%emt 0:00:40]} Nc5 {[%emt 0:01:35]} 12. b4 {[%emt 0:03:09]} Nxd3 {[%emt 0:00:19]} 13. Qxd3 {[%emt 0:00:02]} a5 {[%emt 0:00:05]} 14. bxa5 {[%emt 0:02:44]} Rxa5 {[%emt 0:00:12]} 15. Bd2 {[%emt 0:00:37]} Nd7 {[%emt 0:02:14]} 16. Nb5 {[%emt 0:04:20]} Nc5 {[%emt 0:00:09]} 17. Qc2 {[%emt 0:00:06]} Ra8 {[%emt 0:00:45]} 18. Nc3 {[%emt 0:14:32]} Qd7 {[%emt 0:01:02]} 19. a4 {[%emt 0:01:53]} f5 {[%emt 0:00:38]} 20. Reb1 {[%emt 0:02:51]} Ba6 {[%emt 0:05:56]} 21. Rb4 {[%emt 0:02:54]} fxe4 {[%emt 0:00:53]} 22. Nxe4 {[%emt 0:05:13]} Qf5 {[%emt 0:00:16]} 23. Re1 {[%emt 0:00:07]} Nxe4 {[%emt 0:00:23]} 24. Qxe4 {[%emt 0:00:32]} Qxe4 {[%emt 0:00:17]} 25. Rxe4 {[%emt 0:00:02]} Bc8 {[%emt 0:00:06]} 26. Re3 {[%emt 0:02:06]} Bd7 {[%emt 0:12:15]} 27. Ra3 {[%emt 0:00:07]} e4 {[%emt 0:00:28]} 28. Ng5 {[%emt 0:02:02]} Rfe8 {[%emt 0:06:00]} 29. Bc3 {[%emt 0:13:53]} Bxc3 {[%emt 0:04:48]} 30. Rab3 Bxb4 31. Rxb4 {[%emt 0:00:31]} h6 {[%emt 0:00:36]} 32. Ne6 {[%emt 0:00:09]} Bxe6 {[%emt 0:00:04]} 33. dxe6 {[%emt 0:00:02]} Rxe6 {[%emt 0:00:06]} 34. Kf1 {[%emt 0:00:30]} Rf8 {[%emt 0:01:31]} 0-1